bitfinex/quotes_ETHUSD_20260213
["timestamp","ask_amount","ask_price","bid_price","bid_amount"]
[1770977517330,0.002,1963.4,1963.0,0.46359327]
[1770977517570,0.008,1963.4,1963.0,0.46359327]
[1770977518227,0.002,1963.4,1963.0,0.46359327]
[1770977518430,0.008,1963.4,1963.1,1.73708927]
[1770977518648,0.008,1963.4,1963.2,0.46359327]
[1770977519055,0.002,1963.7,1963.3,0.46359327]
[1770977519356,0.002,1963.7,1963.4,2.41159327]
[1770977520129,0.47696206,1963.7,1962.8,0.46359327]
[1770977520330,0.47496206,1963.5,1962.9,1.949]
[1770977521345,0.47496206,1963.5,1962.6,1.948]
[1770977521531,0.47496206,1963.5,1962.6,2.43489328]
[1770977521732,1.27317172,1963.6,1962.7,0.48689328]
[1770977522127,1.74538849,1963.6,1962.7,0.48689328]
[1770977522334,0.47221677,1963.5,1962.7,0.48689328]
[1770977522534,1.27330141,1963.4,1962.8,1.27369064]
[1770977523756,1.27330141,1963.4,1962.7,1.76060104]
[1770977523961,1.74551818,1963.4,1962.6,3.22177446]
[1770977524162,0.47221677,1963.3,1962.4,1.27493589]
[1770977524472,0.47221677,1963.3,1962.5,1.947]
[1770977524775,1.7456479,1963.2,1962.5,3.22088351]
[1770977525269,1.7456479,1963.2,1962.5,1.947]
[1770977526073,0.47221677,1963.1,1962.5,1.947]
[1770977526488,8.55883783,1963.1,1962.9,0.001]
[1770977526782,1.27356087,1963.0,1962.5,1.947]
[1770977526989,1.27356087,1963.0,1962.8,0.001]
[1770977527150,1.27356087,1963.0,1962.5,1.947]
[1770977527577,1.74577764,1963.0,1962.5,1.947]
[1770977533150,9.36016748,1963.1,1962.5,3.22087487]
[1770977533349,9.36016748,1963.1,1962.5,2.43389328]
[1770977534991,9.36016748,1963.1,1962.5,3.70775107]
[1770977535172,9.36016748,1963.1,1962.5,2.43389328]
[1770977535345,0.47221677,1963.0,1962.5,1.947]
[1770977537384,1.27362575,1962.9,1962.5,1.947]
[1770977538583,1.74582764,1963.0,1962.5,1.947]
[1770977538786,1.74582764,1963.0,1962.6,0.001]
[1770977539155,1.74782764,1963.0,1962.6,0.001]
[1770977540389,1.27561087,1963.0,1962.5,0.001]
[1770977540575,1.27561087,1963.0,1962.4,0.001]
[1770977540576,0.47221677,1962.9,1962.4,0.001]
[1770977542256,1.27369064,1962.8,1962.4,0.001]
[1770977544193,0.47221677,1962.7,1962.3,1.2853515]
[1770977544485,1.27382044,1962.6,1962.1,1.40589328]
[1770977544956,1.27382044,1962.6,1962.1,0.919]
[1770977545570,1.74603721,1962.6,1962.1,0.919]
[1770977545992,9.36041081,1962.7,1962.1,2.19314089]
[1770977546399,9.36041081,1962.7,1962.1,2.68003417]
[1770977550200,9.83262758,1962.7,1962.1,2.68003417]
[1770977550408,9.83262758,1962.7,1962.1,1.40589328]
[1770977550904,0.4929315,1962.3,1961.5,0.001]
[1770977551096,8.08662106,1962.4,1961.6,0.46666485]
[1770977552087,1.27401518,1962.3,1961.7,1.7410697]
[1770977552282,1.27391137,1962.5,1961.8,0.46666485]
[1770977552801,1.76684287,1962.5,1961.8,0.46666485]
[1770977553004,1.76684287,1962.5,1962.2,0.001]
[1770977553217,1.76684287,1962.5,1961.8,0.46666485]
[1770977553376,1.76684287,1962.5,1962.0,0.001]
[1770977554906,6.42622226,1962.2,1962.0,0.001]
[1770977556716,6.42622226,1962.4,1962.0,0.001]
[1770977557913,6.42622226,1962.2,1962.0,0.001]
[1770977559883,7.7001918,1962.4,1962.0,0.001]
[1770977561210,6.42622226,1962.4,1962.0,0.45807689]
[1770977561413,0.002,1962.8,1962.1,0.45707689]
[1770977561600,0.00353886,1963.0,1962.6,6.42622226]
[1770977561808,0.00353886,1963.0,1962.7,2.39307689]
[1770977562185,0.00353886,1963.0,1962.8,1.27369064]
[1770977562814,0.00353886,1963.0,1962.8,1.73076753]
[1770977563513,0.00353886,1963.0,1962.9,0.45707689]
[1770977564252,1e-08,1963.1,1962.8,0.45707689]
[1770977564420,1e-08,1963.1,1962.8,1.73071723]
[1770977564829,1e-08,1963.1,1962.6,1.73084158]
[1770977564995,0.4542318,1963.1,1962.4,1.7309803]
[1770977565196,1e-08,1963.1,1962.6,0.45707689]
[1770977565938,0.002,1963.0,1962.6,0.45707689]
[1770977566813,0.002,1963.0,1962.8,0.45707689]
[1770977567014,0.002,1963.0,1962.9,2.39607689]
[1770977567313,0.002,1963.0,1962.8,1.939]
[1770977567916,0.002,1963.0,1962.5,1.7309354]
[1770977568116,0.002,1963.0,1962.6,1.94]
[1770977568821,0.002,1963.0,1962.7,1.27375554]
[1770977570892,0.002,1963.0,1962.6,1.94]
[1770977572021,0.45623179,1963.0,1962.3,1.27397815]
[1770977572204,0.45623179,1963.0,1962.6,1.942]
[1770977572722,1.72985668,1963.0,1962.6,1.942]
[1770977574093,0.45623179,1963.0,1962.6,1.942]
[1770977574324,0.002,1963.0,1962.6,3.67288502]
[1770977574705,0.002,1963.0,1962.7,0.45707689]
[1770977575320,0.002,1963.0,1962.7,1.73078923]
[1770977577638,0.002,1963.0,1962.7,1.73178923]
[1770977578126,0.002,1963.0,1962.7,0.001]
[1770977579205,0.002,1963.0,1962.7,1.945]
[1770977580422,0.45623179,1963.0,1962.7,1.945]
[1770977580724,0.002,1963.0,1962.7,0.001]
[1770977581230,0.002,1963.0,1962.6,1.943]
[1770977581231,0.48810391,1963.0,1962.5,0.001]
[1770977581407,0.48810391,1963.0,1962.1,1.79813898]
[1770977581606,0.002,1963.0,1962.3,1.74518393]
[1770977581810,0.002,1963.0,1962.4,0.47116875]
[1770977582327,0.002,1963.0,1962.5,0.001]
[1770977582631,0.002,1963.0,1962.6,1.942]
[1770977583031,0.48810391,1963.0,1962.2,1.27404949]
[1770977583219,0.48810391,1963.0,1962.4,1.942]
[1770977583728,0.48810391,1963.0,1962.4,1.943]
[1770977584242,1.27362575,1962.9,1962.4,1.943]
[1770977584429,1.76171711,1963.0,1962.4,3.21694867]
[1770977584623,0.002,1963.0,1962.5,0.001]
[1770977584821,0.002,1963.0,1962.5,0.47216875]
[1770977585699,0.002,1963.0,1962.6,0.001]
[1770977586616,0.002,1963.0,1962.6,1.27382044]
[1770977586933,0.002,1963.0,1962.5,1.74500809]
[1770977587105,0.002,1963.0,1962.6,0.001]
[1770977588202,0.002,1963.0,1962.7,0.001]
[1770977588402,0.002,1963.0,1962.5,1.74500809]
[1770977588403,0.002,1963.0,1962.6,0.001]
[1770977589211,0.002,1963.0,1962.4,1.942]
[1770977589407,0.002,1963.0,1962.5,0.001]
[1770977589408,0.48810391,1963.0,1962.5,0.001]
[1770977590005,0.48810391,1963.0,1962.6,0.001]
[1770977590330,0.002,1962.9,1962.6,0.001]
[1770977590551,0.002,1962.9,1962.7,0.001]
[1770977591038,0.002,1962.9,1962.8,0.001]
[1770977591238,0.002,1962.9,1962.7,1.27475554]
[1770977591613,0.002,1962.9,1962.7,0.001]
[1770977591831,0.002,1962.9,1961.8,5.09716345]
[1770977591832,0.48610391,1962.7,1962.1,0.001]
[1770977592012,6.41929911,1962.8,1962.2,6.64939858]
[1770977592206,6.41929911,1962.8,1962.3,6.17822983]
[1770977592629,6.41929911,1962.8,1962.4,6.17822983]
[1770977592826,6.41929911,1962.8,1962.3,6.17822983]
[1770977593031,0.48810391,1962.9,1962.4,6.17822983]
[1770977593237,1.27369064,1962.8,1962.2,0.47116875]
[1770977593441,0.48610391,1962.7,1962.2,6.17822983]
[1770977593617,0.48610391,1962.7,1962.1,0.001]
[1770977593820,0.48610391,1962.7,1962.1,6.17922983]
[1770977594010,0.48610391,1962.7,1962.1,0.001]
[1770977594839,1.27369064,1962.8,1962.1,6.17922983]
[1770977595345,1.27563106,1962.9,1962.2,0.47116875]
[1770977596616,0.48610391,1962.8,1962.3,6.17822983]
[1770977596816,0.48610391,1962.8,1962.1,0.001]
[1770977596817,0.48610391,1962.8,1962.2,8.11922983]
[1770977597411,1.27375554,1962.7,1962.2,1.941]
[1770977598315,1.27375554,1962.7,1962.3,6.17822983]
[1770977598946,1.27375554,1962.7,1962.2,1.941]
[1770977599259,1.27375554,1962.7,1962.3,6.17822983]
[1770977600845,1.75985945,1962.7,1962.3,6.17822983]
[1770977602238,0.48610391,1962.6,1962.3,6.17822983]
[1770977602819,0.48610391,1962.6,1962.4,0.001]
[1770977603742,0.48610391,1962.6,1962.0,0.00253886]
[1770977603948,1.75998926,1962.5,1962.0,6.18176869]
[1770977605244,1.27388535,1962.5,1962.0,6.18176869]
[1770977605451,1.75998926,1962.5,1962.0,0.00253886]
[1770977605946,1.27388535,1962.5,1962.1,6.17922983]
[1770977608144,0.48610391,1962.4,1962.1,6.17922983]
[1770977609050,0.48610391,1962.4,1962.0,0.00253886]
[1770977609430,0.48610391,1962.4,1961.5,6.01700449]
[1770977609431,0.48610391,1962.1,1961.0,0.00153886]
[1770977609750,3.068,1962.3,1961.0,0.00153886]
[1770977609751,0.48610391,1961.7,1961.0,0.00153886]
[1770977609921,1.27453479,1961.5,1961.0,0.00153886]
[1770977611053,10.51547912,1961.5,1961.0,0.00153886]
[1770977611217,10.51547912,1961.5,1960.9,0.001]
[1770977611818,0.47343531,1961.4,1960.9,0.001]
[1770977612053,8.76750902,1961.2,1960.5,0.534]
[1770977612950,12.66747912,1961.5,1960.6,0.48021687]
[1770977613155,1.0940811,1961.4,1960.6,0.48021687]
[1770977613333,12.66747912,1961.5,1960.6,0.48021687]
[1770977613656,0.47343531,1961.3,1960.5,0.534]
[1770977614026,10.51567408,1961.2,1960.5,0.534]
[1770977614238,0.47343531,1961.1,1960.5,0.001]
[1770977614935,0.47343531,1961.1,1960.7,0.001]
[1770977616456,1.27485976,1961.0,1960.7,0.001]
[1770977619571,0.47418688,1961.2,1960.7,0.001]
[1770977620346,0.47418688,1960.9,1960.4,0.001]
[1770977620866,8.76750902,1961.0,1960.4,0.001]
[1770977621069,0.47418688,1960.9,1960.4,0.001]
[1770977621776,1.2749898,1960.8,1960.4,0.001]
[1770977622873,1.74917668,1960.8,1960.4,0.001]
[1770977623742,1.74917668,1960.8,1960.3,0.001]
[1770977627160,1.74917668,1960.8,1960.4,0.001]
[1770977627356,1.74917668,1960.8,1960.3,0.001]
[1770977627950,1.2749898,1960.8,1960.3,0.001]
[1770977628647,1.74917668,1960.8,1960.3,0.001]
[1770977632563,0.47418688,1960.7,1960.3,0.001]
[1770977632975,6.43848156,1960.5,1960.2,0.001]
[1770977635087,1.27524994,1960.4,1960.2,0.001]
[1770977637793,6.43848156,1960.3,1960.0,0.48527416]
[1770977638086,6.43848156,1960.3,1960.0,0.00253886]
[1770977638292,6.43848156,1960.3,1960.0,0.48527416]
[1770977639055,7.71368857,1960.5,1960.1,0.4827353]
[1770977639471,6.43848156,1960.5,1960.2,0.4827353]
[1770977639874,6.43848156,1960.5,1960.3,0.001]
[1770977640185,1.09656519,1960.4,1960.3,0.001]
[1770977641988,0.002,1960.7,1960.3,0.4546872]
[1770977642166,1.09656519,1960.6,1960.3,0.4546872]
[1770977642370,1.09656519,1960.6,1960.3,0.001]
[1770977642570,7.53504675,1960.6,1960.3,0.001]
[1770977642990,7.53504675,1960.6,1960.2,0.001]
[1770977643192,6.43848156,1960.4,1960.0,0.00253886]
[1770977643359,1.09656519,1960.5,1960.1,0.4536872]
[1770977643560,1.27705828,1960.7,1960.1,0.4536872]
[1770977643771,1.09656519,1960.6,1960.1,0.4536872]
[1770977643986,8.81018364,1960.6,1960.2,0.4536872]
[1770977644375,7.53504675,1960.6,1960.2,0.4536872]
[1770977645187,8.81017196,1960.6,1960.2,0.4536872]
[1770977645488,8.81017196,1960.6,1960.0,0.45622606]
[1770977645792,1.09656519,1960.5,1960.0,0.45622606]
[1770977646089,7.7137315,1960.4,1960.0,0.45622606]
[1770977646895,1.09656519,1960.3,1960.0,0.00253886]
[1770977648062,6.43848156,1960.6,1960.1,0.4536872]
[1770977648394,1.09656519,1960.4,1960.1,1.7291305]
[1770977648593,1.09656519,1960.4,1960.1,0.4536872]
[1770977649697,1.09656519,1960.4,1960.0,1.27800001]
[1770977649994,1.09656519,1960.4,1960.0,1.73168721]
[1770977650492,1.09656519,1960.4,1960.0,1.27803824]
[1770977650697,1.09656519,1960.4,1960.0,1.73172544]
[1770977650874,2.37181783,1960.4,1960.0,0.45622606]
[1770977651195,1.09656519,1960.4,1960.0,1.73173426]
[1770977651814,1.09656519,1960.4,1960.1,0.4536872]
[1770977653000,2.37182542,1960.4,1960.1,0.4546872]
[1770977653200,0.002,1960.3,1960.1,0.4546872]
[1770977653894,0.002,1960.3,1960.1,0.001]
[1770977654096,0.002,1960.3,1960.1,1.73012063]
[1770977654395,1.09656519,1960.4,1960.2,1.72906726]
[1770977654595,1.09656519,1960.4,1960.3,0.4536872]
[1770977654769,0.002,1960.7,1960.3,0.4536872]
[1770977655091,1.09656519,1960.6,1960.3,0.4536872]
[1770977655692,1.09656519,1960.5,1960.3,0.4536872]
[1770977656065,0.002,1960.7,1960.4,0.4536872]
[1770977656370,1.09656519,1960.6,1960.4,0.4536872]
[1770977657188,1.09656519,1960.6,1960.4,1.72891716]
[1770977657377,0.002,1960.7,1960.4,1.72891716]
[1770977657588,1.09856519,1960.7,1960.4,1.72891716]
[1770977659015,0.002,1960.7,1960.4,1.72891716]
[1770977659411,0.002,1960.8,1960.5,0.4536872]
[1770977659614,0.002,1960.8,1960.6,0.4536872]
[1770977659913,0.002,1961.0,1960.6,0.4536872]
[1770977660088,1.09656519,1960.9,1960.7,2.3786872]
[1770977663215,1.09656519,1960.9,1960.7,3.65371112]
[1770977664911,1.09656519,1960.9,1960.7,2.3786872]
[1770977665113,1.09656519,1960.9,1960.7,3.65373792]
[1770977665486,0.002,1961.0,1960.7,2.3786872]
[1770977665682,1.09656519,1960.9,1960.7,1.925]
[1770977666596,1.09656519,1960.9,1960.8,0.001]
[1770977667198,0.99893418,1960.9,1960.8,0.001]
[1770977667404,0.002,1960.9,1960.8,0.4546872]
[1770977667607,0.002,1960.9,1960.8,1.729677]
[1770977668325,0.002,1960.9,1960.8,1.2759898]
[1770977669031,0.002,1960.9,1960.8,0.001]
[1770977669351,0.002,1960.9,1960.8,1.939]
[1770977669352,0.94522825,1960.9,1960.8,1.939]
[1770977670700,0.94522825,1960.9,1960.8,3.2139898]
[1770977671927,0.002,1960.9,1960.8,3.2139898]
[1770977672233,0.002,1960.9,1960.8,1.939]
[1770977675132,0.002,1961.0,1960.8,3.2139898]
[1770977675448,0.002,1961.6,1961.0,0.4850134]
[1770977675739,1.2764723,1961.6,1961.1,1.944]
[1770977676103,1.73820898,1961.6,1961.1,1.944]
[1770977677139,0.002,1961.6,1961.1,3.70380803]
[1770977679043,0.002,1961.5,1961.1,3.70380803]
[1770977682708,0.002,1961.5,1961.1,3.21879463]
[1770977683945,0.002,1961.5,1961.1,1.944]
[1770977683946,0.46373668,1961.5,1961.1,1.944]
[1770977684142,6.43848156,1961.4,1960.8,1.27596329]
[1770977684369,6.90021824,1961.2,1960.8,1.95]
[1770977684548,6.90021824,1961.2,1960.2,5.58648523]
[1770977684549,6.90021824,1961.0,1960.2,5.58648523]
[1770977684852,6.90021824,1961.0,1960.3,2.4340134]
[1770977685020,6.43848156,1961.2,1960.4,0.4850134]
[1770977685219,6.90021824,1961.2,1960.4,0.4850134]
[1770977685416,6.90021824,1961.2,1960.5,0.002]
[1770977687638,1.27479475,1961.1,1960.6,0.002]
[1770977687826,6.90021824,1960.7,1960.3,1.947]
[1770977688029,6.43848156,1960.9,1960.5,0.002]
[1770977688437,10.36385888,1961.4,1960.6,6.92349496]
[1770977688641,0.46173668,1961.3,1960.6,0.4850134]
[1770977688952,9.9021222,1961.4,1960.7,0.4850134]
[1770977689146,2.65073668,1961.4,1960.7,0.4850134]
[1770977689372,3.92534178,1961.4,1960.8,0.002]
[1770977689650,3.4636051,1961.4,1960.8,1.7620032]
[1770977689829,3.46361809,1961.4,1960.8,1.7620032]
[1770977692253,8.17041741,1961.5,1960.8,1.7620032]
[1770977692832,0.46173668,1961.4,1960.8,0.002]
[1770977693753,0.46173668,1961.4,1960.8,1.27698831]
[1770977694548,1.27466476,1961.3,1960.8,1.27698831]
[1770977694750,1.27466476,1961.3,1960.8,0.002]
[1770977694952,0.002,1961.5,1960.8,0.4870134]
[1770977695134,1.27654042,1961.5,1961.0,0.4850134]
[1770977695745,0.002,1961.5,1961.0,0.4850134]
[1770977696254,1.27653852,1961.5,1961.0,0.4850134]
[1770977697764,1.27653852,1961.5,1961.0,1.75986158]
[1770977698266,0.002,1961.5,1961.1,0.002]
[1770977699236,0.002,1961.5,1961.2,0.4850134]
[1770977699435,0.002,1961.5,1961.1,1.949]
[1770977699636,0.002,1961.5,1961.2,1.27472975]
[1770977700470,0.002,1961.7,1961.4,6.9171093]
[1770977700670,0.002,1961.7,1961.5,2.42253531]
[1770977701560,0.002,1961.7,1961.5,1.949]
[1770977702352,0.004,1961.7,1961.1,0.47353531]
[1770977702555,0.002,1961.6,1961.2,1.951]
[1770977703259,0.002,1961.4,1961.2,1.951]
[1770977703863,0.002,1961.4,1961.0,8.18046357]
[1770977704060,0.002,1961.4,1961.2,1.952]
[1770977704061,0.004,1961.4,1961.2,1.952]
[1770977705568,0.004,1961.4,1961.2,3.22672471]
[1770977705761,0.002,1961.4,1961.2,3.70026002]
[1770977706566,0.002,1961.4,1961.3,0.47353531]
[1770977706771,0.002,1961.7,1961.3,0.47353531]
[1770977706979,0.004,1961.7,1961.3,0.47353531]
[1770977707639,0.002,1961.7,1961.3,0.47353531]
[1770977708573,0.002,1961.7,1961.4,1.74813508]
[1770977709469,0.002,1961.7,1961.5,0.47353531]
[1770977709674,0.002,1961.7,1961.6,1.958]
[1770977711879,0.004,1961.7,1961.6,1.958]
[1770977712052,0.004,1961.7,1961.4,1.2745593]
[1770977712368,0.002,1961.6,1961.5,1.96]
[1770977713272,0.002,1961.7,1961.5,1.96]
[1770977713450,0.002,1961.6,1961.5,1.96]
[1770977713649,0.002,1961.6,1961.4,1.27459527]
[1770977713872,0.002,1961.6,1961.5,1.961]
[1770977715146,0.002,1961.6,1961.5,3.23553479]
[1770977715470,0.002,1961.7,1961.5,3.7090701]
[1770977715644,0.004,1961.7,1961.5,3.7090701]
[1770977715968,0.002,1961.6,1961.5,3.23553479]
[1770977716475,0.004,1961.6,1961.5,1.961]
[1770977717477,0.002,1961.6,1961.5,1.961]
[1770977717659,0.002,1961.6,1961.5,3.23553479]
[1770977717856,0.002,1961.6,1961.5,1.961]
[1770977719846,0.002,1961.6,1961.5,3.23553479]
[1770977721388,0.002,1961.6,1961.5,1.961]
[1770977721891,0.004,1961.6,1961.5,1.961]
[1770977722591,0.004,1961.6,1961.5,3.23553479]
[1770977722783,0.004,1961.6,1961.5,1.961]
[1770977723584,0.004,1961.6,1961.5,3.23553479]
[1770977724588,0.004,1961.6,1961.5,1.961]
[1770977725393,0.002,1961.6,1961.5,1.961]
[1770977725767,0.002,1961.6,1961.5,3.23553479]
[1770977726691,0.004,1961.6,1961.5,3.23553479]
[1770977727992,0.00153886,1962.0,1961.6,0.47353531]
[1770977729074,0.00153886,1962.0,1961.7,1.27440485]
[1770977729274,0.00153886,1962.0,1961.8,1.978]
[1770977732195,0.00153886,1962.0,1961.6,1.7479655]
[1770977736571,0.00153886,1962.0,1961.7,6.90647511]
[1770977736912,0.00153886,1962.0,1961.8,2.46641011]
[1770977738104,0.45724567,1962.4,1961.8,2.46641011]
[1770977738303,1.73120541,1962.4,1961.8,2.46641011]
[1770977741000,0.45724567,1962.4,1961.9,1.27527493]
[1770977741205,0.002,1962.4,1961.9,8.18175004]
[1770977741674,0.002,1962.0,1961.9,8.18175004]
[1770977741871,0.002,1962.4,1961.9,8.18175004]
[1770977742808,0.002,1962.4,1961.9,7.70333993]
[1770977742809,0.45724567,1962.4,1961.9,7.70333993]
[1770977743581,0.45724567,1962.4,1961.9,8.18175004]
[1770977743907,0.002,1962.4,1961.9,8.18175004]
[1770977744426,1.2759565,1962.4,1961.9,8.18175004]
[1770977744590,0.002,1962.4,1961.9,8.18175004]
[1770977746413,0.002,1962.4,1962.0,0.47841011]
[1770977746707,0.002,1962.4,1962.1,2.47841011]
[1770977747389,0.002,1962.4,1962.1,2.0]
[1770977749389,0.002,1962.4,1962.2,1.27408011]
[1770977750187,0.002,1962.4,1962.1,10.18062015]
[1770977750905,0.002,1962.4,1962.1,3.75255515]
[1770977754029,0.002,1962.3,1962.1,3.75255515]
[1770977754204,0.002,1962.3,1962.2,0.47841011]
[1770977754394,0.002,1962.4,1962.2,0.47841011]
[1770977755303,0.002,1962.4,1962.1,3.75255515]
[1770977757530,0.002,1962.4,1962.2,6.90133184]
[1770977757729,0.002,1962.7,1962.4,6.90133184]
[1770977758024,0.002,1962.7,1962.5,2.019]
[1770977758228,0.002,1962.7,1962.5,2.49741011]
[1770977758433,0.00353886,1963.0,1962.8,6.42292173]
[1770977758632,0.00353886,1963.0,1962.8,8.44192173]
[1770977758795,0.00353886,1963.0,1962.8,2.019]
[1770977760403,0.45878453,1963.0,1962.5,1.27388535]
[1770977760605,0.47147247,1962.7,1962.0,1.27420998]
[1770977760815,0.47147247,1962.7,1962.1,2.02]
[1770977761027,0.47147247,1962.7,1962.0,1.75798772]
[1770977761350,0.47147247,1962.7,1962.2,2.02]
[1770977761499,6.42646059,1963.0,1962.3,6.90669947]
[1770977761500,0.00353886,1963.0,1962.3,6.90669947]
[1770977761701,0.47501133,1963.0,1962.3,6.90669947]
[1770977762201,0.47501133,1963.0,1962.5,6.42292173]
[1770977762429,0.47501133,1963.0,1962.6,3.29382044]
[1770977763036,0.00353886,1963.0,1962.6,3.29382044]
[1770977763812,0.00353886,1963.0,1962.7,6.90669947]
[1770977764213,0.00353886,1963.0,1962.7,6.42292173]
[1770977764811,0.00353886,1963.0,1962.7,7.69665558]
[1770977765010,0.00353886,1963.0,1962.6,3.29379023]
[1770977765245,0.00353886,1963.0,1962.7,2.025]
[1770977765820,0.47501133,1963.0,1962.7,2.025]
[1770977766029,0.002,1962.9,1962.7,2.025]
[1770977766212,0.47347247,1962.9,1962.3,1.27398474]
[1770977766448,0.47347247,1962.9,1962.5,2.025]
[1770977767122,0.47147247,1962.8,1962.5,2.025]
[1770977767653,0.47147247,1962.8,1962.2,3.29906458]
[1770977769349,0.002,1962.9,1962.3,6.90669947]
[1770977770346,1.74711618,1962.9,1962.3,6.42292173]
[1770977770531,0.47147247,1962.8,1962.3,6.42292173]
[1770977770767,0.47147247,1962.8,1962.2,3.29907332]
[1770977771444,1.74521392,1962.8,1962.2,3.29907332]
[1770977772667,0.47147247,1962.7,1962.2,3.29907332]
[1770977772866,0.47147247,1962.7,1962.2,2.025]
[1770977773044,0.47147247,1962.6,1962.2,2.025]
[1770977773446,1.27388535,1962.5,1962.2,2.025]
[1770977773652,1.74535782,1962.5,1962.2,2.025]
[1770977773849,0.47147247,1962.4,1962.1,0.001]
[1770977774646,1.27388535,1962.5,1962.1,0.001]
[1770977776189,1.74533695,1962.6,1962.1,0.001]
[1770977777974,1.74529479,1962.6,1962.1,0.001]
[1770977778483,1.74529479,1962.6,1962.2,0.001]
[1770977779909,0.47147247,1962.4,1962.2,0.001]
[1770977780584,0.47147247,1962.2,1961.9,0.001]
[1770977781661,0.002,1962.9,1962.0,0.48377774]
[1770977781906,0.47147247,1964.7,1963.2,0.48377774]
[1770977782056,1.91676721,1963.9,1963.6,6.42292173]
[1770977782255,1.91676721,1963.9,1963.3,0.48377774]
[1770977782256,0.47147247,1964.2,1963.7,2.960982]
[1770977782455,0.47147247,1964.2,1963.8,1.36941698]
[1770977782687,0.47147247,1964.2,1963.7,2.960982]
[1770977782688,0.47147247,1964.2,1963.7,1.36941698]
[1770977782995,0.47147247,1964.2,1963.8,1.36941698]
[1770977783494,2.156,1964.5,1963.3,4.13555636]
[1770977783495,0.47147247,1964.0,1963.3,1.82588931]
[1770977783657,0.47147247,1964.0,1963.1,3.86288931]
[1770977783859,1.27304206,1963.8,1963.3,1.36832056]
[1770977784506,1.27304206,1963.8,1963.1,3.86288931]
[1770977784669,6.38695568,1963.7,1963.1,3.86288931]
[1770977785188,6.38695568,1963.6,1963.1,1.82588931]
[1770977785393,1.27304206,1963.8,1963.0,2.03853886]
[1770977785562,0.47147247,1963.5,1963.0,0.00153886]
[1770977785770,1.74472259,1963.5,1963.0,0.00153886]
[1770977785974,6.38695568,1963.4,1963.0,0.00153886]
[1770977786498,6.38695568,1963.3,1963.0,0.00153886]
[1770977789411,6.38695568,1963.2,1963.0,0.00153886]
[1770977790685,6.38695568,1963.1,1963.0,0.00153886]
[1770977790883,7.66033916,1963.3,1963.0,0.00153886]
[1770977791086,6.38695568,1963.2,1963.0,0.00153886]
[1770977791879,3.42917608,1963.6,1963.0,0.00153886]
[1770977792084,6.38695568,1963.5,1963.0,0.00153886]
[1770977792283,7.66019327,1963.5,1963.1,0.001]
[1770977792517,6.38695568,1963.4,1963.1,0.001]
[1770977793015,6.38695568,1963.3,1963.1,0.001]
[1770977793197,6.38695568,1963.5,1963.1,0.001]
[1770977793713,6.38695568,1963.4,1963.1,0.001]
[1770977793918,6.38695568,1963.5,1963.1,0.001]
[1770977794693,1.75511513,1963.8,1963.1,0.001]
[1770977795093,6.38695568,1963.7,1963.1,0.001]
[1770977795312,6.38695568,1963.8,1963.1,0.001]
[1770977796621,3.43401542,1963.9,1963.1,1.274496]
[1770977796791,6.38695568,1963.8,1963.1,1.274496]
[1770977797323,6.38695568,1963.8,1963.1,0.001]
[1770977797619,6.38695568,1963.7,1963.1,0.001]
[1770977798721,6.38695568,1963.6,1963.1,0.001]
[1770977799123,10.14,1964.4,1963.1,0.001]
[1770977799330,0.46130986,1965.8,1964.4,0.47855271]
[1770977799491,1.27317347,1966.0,1965.3,9.5646383]
[1770977799689,1.27317347,1966.0,1965.3,7.660061]
[1770977799917,0.46130986,1965.9,1965.3,7.660061]
[1770977800091,0.46130986,1965.8,1964.8,0.26553953]
[1770977800523,0.46130986,1965.8,1965.1,7.660061]
[1770977801223,1.27181156,1965.7,1965.1,7.660061]
[1770977802406,1.73312142,1965.7,1965.1,7.660061]
[1770977804557,0.46130986,1965.6,1964.9,7.660061]
[1770977805603,8.08178053,1965.3,1964.1,1.27279745]
[1770977805816,2.64130986,1965.2,1964.4,7.660061]
[1770977806016,0.46130986,1965.1,1964.4,7.660061]
[1770977806604,2.18,1965.2,1964.5,7.660061]
[1770977808149,1.27219988,1965.1,1964.5,7.660061]
[1770977808560,1.27219988,1965.1,1964.5,8.93264518]
[1770977809829,1.27219988,1965.1,1964.5,7.660061]
[1770977810369,1.27219988,1965.1,1964.5,8.93263985]
[1770977811235,1.27219988,1965.1,1964.5,12.74263985]
[1770977811760,5.08776392,1965.6,1964.9,8.13861371]
[1770977811761,1.27187627,1965.6,1964.9,8.13861371]
[1770977811959,1.27187627,1965.6,1964.9,7.660061]
[1770977812660,5.08950508,1965.7,1964.9,7.660061]
[1770977813050,5.08950508,1965.7,1964.9,8.93236445]
[1770977815161,5.08950508,1965.7,1964.9,9.41091716]
[1770977815367,5.08950508,1965.7,1965.0,7.660061]
[1770977816981,0.002,1966.6,1965.6,8.74222494]
[1770977817260,0.00153886,1966.4,1966.2,7.660061]
[1770977818257,1.27323087,1966.6,1966.2,7.660061]
[1770977818437,0.00153886,1966.5,1966.2,7.660061]
[1770977820266,0.00353886,1966.5,1966.2,7.660061]
[1770977820634,0.46366902,1966.5,1965.5,0.47941762]
[1770977820840,0.46366902,1966.5,1965.6,2.055]
[1770977821061,1.27135882,1966.4,1965.5,0.47941762]
[1770977821265,0.46166902,1966.3,1965.2,0.47941762]
[1770977821434,0.46166902,1966.3,1965.4,2.056]
[1770977822138,0.46166902,1966.3,1965.3,2.055]
[1770977823165,0.46166902,1966.1,1965.1,0.47941762]
[1770977823376,0.46166902,1966.1,1965.1,2.055]
[1770977823871,0.46166902,1966.1,1965.1,3.32719228]
[1770977824363,0.46166902,1966.1,1965.0,1.75421813]
[1770977824583,0.46166902,1966.1,1965.0,2.53695648]
[1770977825171,1.73328651,1966.0,1965.0,2.53695648]
[1770977827539,0.46166902,1965.9,1965.0,2.53695648]
[1770977827739,0.46166902,1965.8,1965.0,0.00253886]
[1770977829365,1.73348058,1965.7,1965.0,0.00253886]
[1770977832689,0.46166902,1965.6,1965.1,0.001]
[1770977833566,1.27194098,1965.5,1965.1,0.001]
[1770977835475,1.73361,1965.5,1965.1,0.001]